[Event "*** Titled Tuesday Blitz"]
[Site "Chess.com"]
[Date "2021.03.02"]
[Round "9"]
[White "Bigfish1995"]
[Black "PaulfromSPb"]
[Result "1-0"]
[WhiteElo "3115"]
[BlackElo "2736"]
[TimeControl "180+1"]
[EndTime "11:49:21 PST"]
[Termination "Bigfish1995 won by resignation"]

1. e4 {[%clk 0:02:45.8]} 1... e6 {[%clk 0:02:58]} 2. f4 {[%clk 0:02:45.3]} 2...
d5 {[%clk 0:02:55]} 3. e5 {[%clk 0:02:45.7]} 3... c5 {[%clk 0:02:54.3]} 4. Nf3
{[%clk 0:02:46.3]} 4... Nc6 {[%clk 0:02:53.2]} 5. c3 {[%clk 0:02:46.9]} 5... d4
{[%clk 0:02:51.8]} 6. Bd3 {[%clk 0:02:46.9]} 6... Nge7 {[%clk 0:02:46.3]} 7. O-O
{[%clk 0:02:46.2]} 7... Nd5 {[%clk 0:02:45.3]} 8. Be4 {[%clk 0:02:20.6]} 8...
Nxf4 {[%clk 0:02:38.1]} 9. d3 {[%clk 0:02:20.4]} 9... Ng6 {[%clk 0:02:34.3]} 10.
Ng5 {[%clk 0:02:19.3]} 10... Ncxe5 {[%clk 0:02:18.3]} 11. Qh5 {[%clk 0:02:18.6]}
11... f5 {[%clk 0:01:43.7]} 12. Bf4 {[%clk 0:02:07.5]} 12... Nf7 {[%clk
0:01:25]} 13. Nxf7 {[%clk 0:01:48.8]} 13... Kxf7 {[%clk 0:01:25.9]} 14. g4
{[%clk 0:01:33.9]} 14... Qh4 {[%clk 0:01:18.8]} 15. Qxh4 {[%clk 0:01:25.7]}
15... Nxh4 {[%clk 0:01:19.7]} 16. gxf5 {[%clk 0:01:26.3]} 16... Nxf5 {[%clk
0:01:11.1]} 17. Nd2 {[%clk 0:01:25.7]} 17... g5 {[%clk 0:01:05.3]} 18. Be5
{[%clk 0:01:21]} 18... Bg7 {[%clk 0:01:05.3]} 19. cxd4 {[%clk 0:01:16.3]} 19...
cxd4 {[%clk 0:01:03]} 20. Bg3 {[%clk 0:01:12.6]} 20... Bd7 {[%clk 0:00:51.9]}
21. Rac1 {[%clk 0:01:07.7]} 21... Rac8 {[%clk 0:00:50.6]} 22. Nc4 {[%clk
0:01:06.8]} 22... Ke7 {[%clk 0:00:32.7]} 23. Bxf5 {[%clk 0:01:06.6]} 23... exf5
{[%clk 0:00:32.7]} 24. Rce1+ {[%clk 0:01:07.3]} 24... Kd8 {[%clk 0:00:16.8]} 25.
Nd6 {[%clk 0:00:51.9]} 25... f4 {[%clk 0:00:17]} 26. Bf2 {[%clk 0:00:43.6]}
26... Rf8 {[%clk 0:00:15.6]} 27. Nxc8 {[%clk 0:00:23]} 27... Bxc8 {[%clk
0:00:16.5]} 28. Rc1 {[%clk 0:00:23.6]} 28... Bf5 {[%clk 0:00:14.1]} 29. Rc5
{[%clk 0:00:23.7]} 29... Bxd3 {[%clk 0:00:12.6]} 30. Rd1 {[%clk 0:00:22.8]}
30... Be2 {[%clk 0:00:12.7]} 31. Rd2 {[%clk 0:00:21.8]} 31... d3 {[%clk
0:00:13.2]} 32. Rxg5 {[%clk 0:00:21.2]} 32... Bh6 {[%clk 0:00:11]} 33. Rd5+
{[%clk 0:00:17]} 33... Kc7 {[%clk 0:00:09.6]} 34. R2xd3 {[%clk 0:00:12.6]} 34...
Rg8+ {[%clk 0:00:09.1]} 35. Kh1 {[%clk 0:00:13.1]} 35... Bxd3 {[%clk 0:00:06.9]}
36. Rxd3 {[%clk 0:00:14]} 36... Kc6 {[%clk 0:00:06]} 37. Rc3+ {[%clk 0:00:13.6]}
37... Kd7 {[%clk 0:00:05.6]} 38. Bxa7 {[%clk 0:00:13.4]} 38... Bg7 {[%clk
0:00:05.8]} 39. Rd3+ {[%clk 0:00:13.2]} 39... Ke6 {[%clk 0:00:06.2]} 40. Bf2
{[%clk 0:00:11.9]} 40... Rc8 {[%clk 0:00:05.3]} 41. Rd2 {[%clk 0:00:11.7]} 41...
Kf5 {[%clk 0:00:05.3]} 42. Kg2 {[%clk 0:00:11.7]} 42... Ke4 {[%clk 0:00:04.4]}
43. Re2+ {[%clk 0:00:12.1]} 43... Kf5 {[%clk 0:00:04.2]} 44. Kf3 {[%clk
0:00:12.7]} 44... Rd8 {[%clk 0:00:04.4]} 45. Rc2 {[%clk 0:00:12.6]} 45... Rd3+
{[%clk 0:00:04.3]} 46. Kg2 {[%clk 0:00:12.9]} 46... Rd7 {[%clk 0:00:04.3]} 47.
h3 {[%clk 0:00:12.9]} 47... Be5 {[%clk 0:00:03.5]} 48. b3 {[%clk 0:00:13.1]}
48... Ke4 {[%clk 0:00:03.8]} 49. Rc4+ {[%clk 0:00:13.2]} 49... Kf5 {[%clk
0:00:03.7]} 50. a4 {[%clk 0:00:13.3]} 50... Rd3 {[%clk 0:00:03.6]} 51. Rc5
{[%clk 0:00:09.2]} 51... f3+ {[%clk 0:00:03.8]} 52. Kf1 {[%clk 0:00:09.4]} 52...
Ke4 {[%clk 0:00:04.7]} 53. Rc4+ {[%clk 0:00:07.7]} 53... Kf5 {[%clk 0:00:05.1]}
54. Bc5 {[%clk 0:00:07]} 54... Rd1+ {[%clk 0:00:04.6]} 55. Kf2 {[%clk
0:00:07.2]} 55... Rd3 {[%clk 0:00:04.8]} 56. b4 {[%clk 0:00:07.1]} 56... Rb3
{[%clk 0:00:04.6]} 57. Be3 {[%clk 0:00:06.8]} 57... Ke6 {[%clk 0:00:04.5]} 58.
Kxf3 {[%clk 0:00:06.8]} 58... Kd5 {[%clk 0:00:04.6]} 59. Rc5+ {[%clk 0:00:07.4]}
59... Kd6 {[%clk 0:00:05]} 60. Rc4 {[%clk 0:00:07.5]} 60... Kd5 {[%clk
0:00:05.3]} 61. Rh4 {[%clk 0:00:07.6]} 61... Ke6 {[%clk 0:00:04.4]} 62. Ke2
{[%clk 0:00:07.3]} 62... Rb2+ {[%clk 0:00:03.8]} 63. Kd3 {[%clk 0:00:07.7]}
63... Rb3+ {[%clk 0:00:04.2]} 64. Kd2 {[%clk 0:00:07]} 64... Bc3+ {[%clk
0:00:04.3]} 65. Kc2 {[%clk 0:00:07.3]} 65... Rxb4 {[%clk 0:00:04.7]} 66. Rh6+
{[%clk 0:00:07.6]} 66... Bf6 {[%clk 0:00:02.5]} 67. Bg5 {[%clk 0:00:08.1]} 67...
Rc4+ {[%clk 0:00:02.8]} 68. Kd3 {[%clk 0:00:07.9]} 68... Rc3+ {[%clk 0:00:02.9]}
69. Ke2 {[%clk 0:00:07.7]} 69... Rc2+ {[%clk 0:00:02.9]} 70. Kf3 {[%clk
0:00:08.2]} 70... Rc3+ {[%clk 0:00:03.4]} 71. Kg4 {[%clk 0:00:08.7]} 71... Rc4+
{[%clk 0:00:03.5]} 72. Kh5 {[%clk 0:00:09.2]} 72... Rxa4 {[%clk 0:00:03.7]} 73.
Rxf6+ {[%clk 0:00:09.4]} 73... Ke5 {[%clk 0:00:03.9]} 74. Rf7 {[%clk 0:00:09.7]}
74... b5 {[%clk 0:00:04.2]} 75. Rxh7 {[%clk 0:00:09.9]} 75... Kd4 {[%clk
0:00:04.2]} 76. Kg6 {[%clk 0:00:09.3]} 76... b4 {[%clk 0:00:04.3]} 77. Bf6+
{[%clk 0:00:08.6]} 77... Kc5 {[%clk 0:00:03.7]} 78. h4 {[%clk 0:00:09]} 78...
Ra2 {[%clk 0:00:03.6]} 79. Rb7 {[%clk 0:00:09.2]} 79... Rg2+ {[%clk 0:00:04.5]}
80. Bg5 {[%clk 0:00:09.1]} 80... Kc4 {[%clk 0:00:04.6]} 81. h5 {[%clk
0:00:09.5]} 81... b3 {[%clk 0:00:05.1]} 82. h6 {[%clk 0:00:10]} 82... Kc3 {[%clk
0:00:03.1]} 83. h7 {[%clk 0:00:10.4]} 83... Rh2 {[%clk 0:00:03.6]} 84. Bf6+
{[%clk 0:00:10.9]} 84... Kc2 {[%clk 0:00:02.9]} 85. h8=Q {[%clk 0:00:11.8]}
85... Rxh8 {[%clk 0:00:02.8]} 86. Bxh8 {[%clk 0:00:12.7]} 1-0

[Event "*** Titled Tuesday Blitz"]
[Site "Chess.com"]
[Date "2021.03.02"]
[Round "9"]
[White "davigator"]
[Black "Gusarov91"]
[Result "0-1"]
[WhiteElo "2392"]
[BlackElo "2523"]
[TimeControl "180+1"]
[EndTime "11:49:25 PST"]
[Termination "Gusarov91 won on time"]

1. e4 {[%clk 0:03:00.9]} 1... c5 {[%clk 0:03:00]} 2. Nf3 {[%clk 0:02:57.5]} 2...
d6 {[%clk 0:02:59.8]} 3. d4 {[%clk 0:02:57.3]} 3... cxd4 {[%clk 0:03:00.3]} 4.
Nxd4 {[%clk 0:02:57.8]} 4... Nf6 {[%clk 0:03:00.9]} 5. Nc3 {[%clk 0:02:58.1]}
5... a6 {[%clk 0:03:01.6]} 6. Bg5 {[%clk 0:02:57.7]} 6... e6 {[%clk 0:03:01.1]}
7. f4 {[%clk 0:02:57.6]} 7... Nbd7 {[%clk 0:02:59.7]} 8. Qe2 {[%clk 0:02:52]}
8... Qa5 {[%clk 0:02:54.2]} 9. O-O-O {[%clk 0:02:49.4]} 9... Be7 {[%clk
0:02:53.4]} 10. g4 {[%clk 0:02:47.1]} 10... h6 {[%clk 0:02:53.2]} 11. Bxf6
{[%clk 0:02:45.9]} 11... Bxf6 {[%clk 0:02:49]} 12. h4 {[%clk 0:02:44]} 12... Qb6
{[%clk 0:02:47]} 13. Qd2 {[%clk 0:01:57.1]} 13... Bxd4 {[%clk 0:02:06.7]} 14.
Qxd4 {[%clk 0:01:56.3]} 14... Qxd4 {[%clk 0:02:07.6]} 15. Rxd4 {[%clk
0:01:56.1]} 15... Ke7 {[%clk 0:02:08.5]} 16. Bg2 {[%clk 0:01:53.9]} 16... Rd8
{[%clk 0:02:06.4]} 17. g5 {[%clk 0:01:49.3]} 17... Nc5 {[%clk 0:01:53.1]} 18.
Rhd1 {[%clk 0:01:47.8]} 18... Rb8 {[%clk 0:01:50.2]} 19. b4 {[%clk 0:01:45.4]}
19... Nd7 {[%clk 0:01:43.2]} 20. Rxd6 {[%clk 0:01:45.1]} 20... b5 {[%clk
0:01:43.4]} 21. e5 {[%clk 0:01:40.5]} 21... Rb6 {[%clk 0:01:39.8]} 22. R6d4
{[%clk 0:01:35.6]} 22... hxg5 {[%clk 0:01:39.4]} 23. hxg5 {[%clk 0:01:34.7]}
23... Rh8 {[%clk 0:01:33.4]} 24. Ne4 {[%clk 0:01:25.9]} 24... Rh2 {[%clk
0:01:32.9]} 25. R1d2 {[%clk 0:01:25.2]} 25... Rh4 {[%clk 0:01:18.3]} 26. Nd6
{[%clk 0:01:23.1]} 26... Rxd6 {[%clk 0:01:15]} 27. exd6+ {[%clk 0:01:20.2]}
27... Kd8 {[%clk 0:01:15.1]} 28. Bc6 {[%clk 0:01:16]} 28... Nb8 {[%clk
0:01:04.6]} 29. Ba8 {[%clk 0:00:46.8]} 29... Bd7 {[%clk 0:01:01]} 30. Bb7 {[%clk
0:00:44.9]} 30... Bc6 {[%clk 0:01:00.4]} 31. Bxc6 {[%clk 0:00:41.5]} 31... Nxc6
{[%clk 0:01:01.3]} 32. Re4 {[%clk 0:00:42]} 32... Kd7 {[%clk 0:01:00]} 33. Kb2
{[%clk 0:00:40.1]} 33... g6 {[%clk 0:00:58]} 34. Kb3 {[%clk 0:00:39.8]} 34...
Rh3+ {[%clk 0:00:57.8]} 35. c3 {[%clk 0:00:38]} 35... Rf3 {[%clk 0:00:52.3]} 36.
Kc2 {[%clk 0:00:27.4]} 36... Rh3 {[%clk 0:00:49.3]} 37. a3 {[%clk 0:00:27.3]}
37... Na7 {[%clk 0:00:42.6]} 38. Kb2 {[%clk 0:00:25.2]} 38... Nc6 {[%clk
0:00:42.4]} 39. c4 {[%clk 0:00:24.7]} 39... Rf3 {[%clk 0:00:37.4]} 40. c5 {[%clk
0:00:22.4]} 40... Rh3 {[%clk 0:00:35.6]} 41. Rc2 {[%clk 0:00:18.8]} 41... Rh4
{[%clk 0:00:33.1]} 42. Kb3 {[%clk 0:00:17.5]} 42... Rh3+ {[%clk 0:00:32.5]} 43.
Rc3 {[%clk 0:00:17.9]} 43... Rh1 {[%clk 0:00:32.1]} 44. Rf3 {[%clk 0:00:16.7]}
44... Rb1+ {[%clk 0:00:29.3]} 45. Kc2 {[%clk 0:00:16.5]} 45... Rh1 {[%clk
0:00:28.6]} 46. Kb2 {[%clk 0:00:16.5]} 46... Rh2+ {[%clk 0:00:27.1]} 47. Kb1
{[%clk 0:00:16.6]} 47... Rh1+ {[%clk 0:00:26.6]} 48. Kb2 {[%clk 0:00:17.5]}
48... Rh2+ {[%clk 0:00:26.7]} 49. Kc1 {[%clk 0:00:17.7]} 49... Rh1+ {[%clk
0:00:26.1]} 50. Kd2 {[%clk 0:00:18.2]} 50... Rh2+ {[%clk 0:00:24.5]} 51. Ke1
{[%clk 0:00:18.7]} 51... Nd8 {[%clk 0:00:22.4]} 52. Kf1 {[%clk 0:00:18.3]} 52...
Nc6 {[%clk 0:00:20.2]} 53. Kg1 {[%clk 0:00:18.8]} 53... Rh4 {[%clk 0:00:19.2]}
54. Kg2 {[%clk 0:00:19]} 54... a5 {[%clk 0:00:17.8]} 55. Rh3 {[%clk 0:00:18.9]}
55... Rg4+ {[%clk 0:00:17.8]} 56. Kf2 {[%clk 0:00:18]} 56... axb4 {[%clk
0:00:17.5]} 57. axb4 {[%clk 0:00:18.1]} 57... e5 {[%clk 0:00:18]} 58. Kf3 {[%clk
0:00:16.2]} 58... Rg1 {[%clk 0:00:18.1]} 59. fxe5 {[%clk 0:00:15.8]} 59... Ke6
{[%clk 0:00:18.7]} 60. Kf2 {[%clk 0:00:14.1]} 60... Rxg5 {[%clk 0:00:18.2]} 61.
Rf3 {[%clk 0:00:14.7]} 61... Nxe5 {[%clk 0:00:17.6]} 62. Rfe3 {[%clk 0:00:14.9]}
62... f6 {[%clk 0:00:17.6]} 63. c6 {[%clk 0:00:13.7]} 63... Kxd6 {[%clk
0:00:17.5]} 64. Rd4+ {[%clk 0:00:13.2]} 64... Kxc6 {[%clk 0:00:17.8]} 65. Rde4
{[%clk 0:00:12.1]} 65... Ng4+ {[%clk 0:00:17.9]} 66. Rxg4 {[%clk 0:00:10.7]}
66... Rxg4 {[%clk 0:00:18.2]} 67. Re6+ {[%clk 0:00:11.3]} 67... Kd5 {[%clk
0:00:18.1]} 68. Rxf6 {[%clk 0:00:11.8]} 68... Kc4 {[%clk 0:00:18.7]} 69. Kf3
{[%clk 0:00:09.3]} 69... Rg1 {[%clk 0:00:17.8]} 70. Ke3 {[%clk 0:00:07.9]} 70...
Kxb4 {[%clk 0:00:17.7]} 71. Kd2 {[%clk 0:00:08.6]} 71... Rg4 {[%clk 0:00:16.1]}
72. Kc2 {[%clk 0:00:08.5]} 72... Kc4 {[%clk 0:00:16]} 73. Rc6+ {[%clk
0:00:07.5]} 73... Kb4 {[%clk 0:00:16.5]} 74. Rf6 {[%clk 0:00:07.2]} 74... Rg3
{[%clk 0:00:16.7]} 75. Kb2 {[%clk 0:00:07.4]} 75... Rg2+ {[%clk 0:00:16.7]} 76.
Kb1 {[%clk 0:00:08.1]} 76... g5 {[%clk 0:00:17.1]} 77. Rf3 {[%clk 0:00:07.7]}
77... g4 {[%clk 0:00:16.2]} 78. Re3 {[%clk 0:00:07.8]} 78... Ka4 {[%clk
0:00:15.6]} 79. Re8 {[%clk 0:00:06.2]} 79... b4 {[%clk 0:00:15.4]} 80. Re3
{[%clk 0:00:06.7]} 80... Rf2 {[%clk 0:00:15.4]} 81. Rg3 {[%clk 0:00:06.1]} 81...
Rf4 {[%clk 0:00:14.3]} 82. Kb2 {[%clk 0:00:06]} 82... b3 {[%clk 0:00:13.4]} 83.
Rd3 {[%clk 0:00:03.8]} 83... Rf2+ {[%clk 0:00:13.4]} 84. Kc1 {[%clk 0:00:03.2]}
84... Ka3 {[%clk 0:00:13.7]} 85. Rd8 {[%clk 0:00:02.8]} 85... Rf1+ {[%clk
0:00:13.7]} 86. Kd2 {[%clk 0:00:02.7]} 86... g3 {[%clk 0:00:12.8]} 0-1

[Event "*** Titled Tuesday Blitz"]
[Site "Chess.com"]
[Date "2021.03.02"]
[Round "9"]
[White "champ2005"]
[Black "Parhamov"]
[Result "0-1"]
[WhiteElo "2989"]
[BlackElo "2897"]
[TimeControl "180+1"]
[EndTime "11:49:50 PST"]
[Termination "Parhamov won by resignation"]

1. d4 {[%clk 0:03:00.9]} 1... Nf6 {[%clk 0:02:58.5]} 2. Bf4 {[%clk 0:02:59.7]}
2... d5 {[%clk 0:02:56.7]} 3. e3 {[%clk 0:02:59.5]} 3... c5 {[%clk 0:02:57]} 4.
Nf3 {[%clk 0:02:58.7]} 4... Nc6 {[%clk 0:02:57.1]} 5. Nbd2 {[%clk 0:02:58.3]}
5... Bf5 {[%clk 0:02:50.6]} 6. dxc5 {[%clk 0:02:42.5]} 6... e6 {[%clk
0:02:49.3]} 7. Nd4 {[%clk 0:02:22.4]} 7... Bxc5 {[%clk 0:02:43.2]} 8. Nxf5
{[%clk 0:02:22.3]} 8... exf5 {[%clk 0:02:43.5]} 9. c3 {[%clk 0:02:22.8]} 9...
O-O {[%clk 0:02:41.9]} 10. Bd3 {[%clk 0:02:22.7]} 10... g6 {[%clk 0:02:38.1]}
11. O-O {[%clk 0:02:22.7]} 11... Qe7 {[%clk 0:02:36.1]} 12. Nb3 {[%clk
0:02:17.7]} 12... Bb6 {[%clk 0:02:35.2]} 13. Qe2 {[%clk 0:02:11.2]} 13... Ne4
{[%clk 0:02:33]} 14. Rad1 {[%clk 0:02:10.1]} 14... Rfd8 {[%clk 0:02:32.5]} 15.
Rfe1 {[%clk 0:02:04.2]} 15... Rac8 {[%clk 0:02:32]} 16. Nd4 {[%clk 0:02:02.6]}
16... h5 {[%clk 0:02:28.8]} 17. h3 {[%clk 0:01:59]} 17... Ne5 {[%clk 0:02:25.8]}
18. Bb1 {[%clk 0:01:54.1]} 18... a6 {[%clk 0:02:24.2]} 19. Nf3 {[%clk 0:01:47]}
19... Nc4 {[%clk 0:02:22.7]} 20. Bd3 {[%clk 0:01:37.1]} 20... Qe6 {[%clk
0:02:07.9]} 21. Nd4 {[%clk 0:01:36.7]} 21... Qf6 {[%clk 0:02:07.7]} 22. Bh2
{[%clk 0:01:26.1]} 22... Ba7 {[%clk 0:02:07]} 23. Rc1 {[%clk 0:01:25.6]} 23...
b5 {[%clk 0:02:06.9]} 24. Red1 {[%clk 0:01:24.4]} 24... Re8 {[%clk 0:01:59]} 25.
Re1 {[%clk 0:01:15.4]} 25... Re7 {[%clk 0:01:52.3]} 26. Ra1 {[%clk 0:01:07.7]}
26... Rce8 {[%clk 0:01:50.4]} 27. Bxe4 {[%clk 0:01:08]} 27... Rxe4 {[%clk
0:01:47.9]} 28. b3 {[%clk 0:01:07.1]} 28... Na5 {[%clk 0:01:05.5]} 29. Qd2
{[%clk 0:01:00.8]} 29... Nc6 {[%clk 0:00:59.5]} 30. Nf3 {[%clk 0:00:41.9]} 30...
b4 {[%clk 0:00:39]} 31. Rac1 {[%clk 0:00:31.3]} 31... bxc3 {[%clk 0:00:22.3]}
32. Qxc3 {[%clk 0:00:32.2]} 32... Qxc3 {[%clk 0:00:22.5]} 33. Rxc3 {[%clk
0:00:33.1]} 33... Nb4 {[%clk 0:00:22.5]} 34. Rc7 {[%clk 0:00:23.8]} 34... Bb8
{[%clk 0:00:18.6]} 35. Rd7 {[%clk 0:00:19.7]} 35... Bxh2+ {[%clk 0:00:17.9]} 36.
Kxh2 {[%clk 0:00:20.6]} 36... Nxa2 {[%clk 0:00:18.3]} 37. Rxd5 {[%clk
0:00:18.7]} 37... f4 {[%clk 0:00:18.7]} 38. Ng5 {[%clk 0:00:14.1]} 38... R4e7
{[%clk 0:00:18.7]} 39. e4 {[%clk 0:00:13.8]} 39... Nc3 {[%clk 0:00:15]} 40. Ra5
{[%clk 0:00:13.9]} 40... f6 {[%clk 0:00:14.9]} 41. Nf3 {[%clk 0:00:14.2]} 41...
Nxe4 {[%clk 0:00:15.4]} 42. Rxa6 {[%clk 0:00:13.7]} 42... g5 {[%clk 0:00:14.6]}
43. Re2 {[%clk 0:00:09.2]} 43... Kf7 {[%clk 0:00:13.4]} 44. Nd4 {[%clk
0:00:09.4]} 44... Nc5 {[%clk 0:00:12.7]} 45. Rxe7+ {[%clk 0:00:09]} 45... Rxe7
{[%clk 0:00:13.5]} 46. Rc6 {[%clk 0:00:09.6]} 46... Nd3 {[%clk 0:00:13.7]} 47.
Rc2 {[%clk 0:00:09.2]} 47... Rb7 {[%clk 0:00:13.2]} 48. Rd2 {[%clk 0:00:08.7]}
48... Nc5 {[%clk 0:00:12.9]} 49. Rc2 {[%clk 0:00:09.2]} 49... Ne4 {[%clk
0:00:13]} 50. Re2 {[%clk 0:00:08.9]} 50... Nc3 {[%clk 0:00:10.4]} 51. Rc2 {[%clk
0:00:08.1]} 51... Nd5 {[%clk 0:00:10.8]} 52. Rc5 {[%clk 0:00:08.3]} 52... Ne7
{[%clk 0:00:10.2]} 53. Rc4 {[%clk 0:00:07.5]} 53... Kg6 {[%clk 0:00:09.3]} 54.
b4 {[%clk 0:00:07.9]} 54... Ra7 {[%clk 0:00:05.3]} 55. b5 {[%clk 0:00:07.8]}
55... Ra2 {[%clk 0:00:05.5]} 56. Rc2 {[%clk 0:00:08.3]} 56... Ra4 {[%clk
0:00:04.8]} 57. Nc6 {[%clk 0:00:08.6]} 57... Nd5 {[%clk 0:00:05.2]} 58. Rd2
{[%clk 0:00:07.8]} 58... Nb6 {[%clk 0:00:05.5]} 59. Rd6 {[%clk 0:00:07.2]} 59...
Nc8 {[%clk 0:00:01.8]} 60. Rd7 {[%clk 0:00:07.2]} 60... Nb6 {[%clk 0:00:02.5]}
61. Rd6 {[%clk 0:00:07.4]} 61... Nc8 {[%clk 0:00:03.1]} 62. Rd4 {[%clk
0:00:06.7]} 62... Ra2 {[%clk 0:00:03.3]} 63. Kg1 {[%clk 0:00:05.3]} 63... Rb2
{[%clk 0:00:03.2]} 64. Rb4 {[%clk 0:00:05.3]} 64... Rxb4 {[%clk 0:00:03]} 65.
Nxb4 {[%clk 0:00:06.2]} 65... Kf5 {[%clk 0:00:03.8]} 66. Nd5 {[%clk 0:00:06.1]}
66... Ke5 {[%clk 0:00:04.2]} 67. b6 {[%clk 0:00:06.4]} 67... Nd6 {[%clk
0:00:04.7]} 68. Nc3 {[%clk 0:00:04.3]} 68... Nb7 {[%clk 0:00:03]} 69. h4 {[%clk
0:00:04.8]} 69... g4 {[%clk 0:00:02]} 70. f3 {[%clk 0:00:04]} 70... f5 {[%clk
0:00:02.9]} 71. Kf2 {[%clk 0:00:03.9]} 71... Kd4 {[%clk 0:00:03.4]} 72. Ne2+
{[%clk 0:00:04.4]} 72... Ke5 {[%clk 0:00:04]} 73. Ke1 {[%clk 0:00:05]} 73... Nd6
{[%clk 0:00:02.9]} 74. Kd2 {[%clk 0:00:05.4]} 74... Nc4+ {[%clk 0:00:02.2]} 75.
Kd3 {[%clk 0:00:06]} 75... Nxb6 {[%clk 0:00:02.9]} 76. Nd4 {[%clk 0:00:06.6]}
76... Nd5 {[%clk 0:00:02.1]} 77. Nc6+ {[%clk 0:00:06.7]} 77... Kd6 {[%clk
0:00:02.4]} 78. Nd4 {[%clk 0:00:06.9]} 78... Ne7 {[%clk 0:00:01]} 79. Kc4 {[%clk
0:00:06.7]} 79... Ke5 {[%clk 0:00:01.3]} 80. Kc5 {[%clk 0:00:04.6]} 80... Ng6
{[%clk 0:00:01.7]} 81. Nc6+ {[%clk 0:00:04.9]} 81... Kf6 {[%clk 0:00:02.2]} 82.
Kd6 {[%clk 0:00:04]} 82... Nxh4 {[%clk 0:00:02.8]} 83. Ne5 {[%clk 0:00:03.8]}
83... Nxg2 {[%clk 0:00:03.2]} 0-1